bitfinex-derivatives/quotes_ETHF0:USTF0_20250115
["timestamp","ask_amount","ask_price","bid_price","bid_amount"]
[1736969889638,0.58512,3417.6,3417.5,3.2078]
[1736969890034,0.58512,3417.6,3416.3,42.266]
[1736969890035,0.58523,3416.9,3416.8,3.79305]
[1736969890241,0.58521,3417.1,3416.9,0.58522]
[1736969890436,1.46275,3417.7,3416.8,3.2078]
[1736969890742,0.58508,3417.9,3417.8,0.58508]
[1736969891041,0.5851,3417.7,3417.6,3.79291]
[1736969891743,0.5851,3417.7,3417.6,3.2078]
[1736969891941,1.49255,3418.0,3417.9,0.58506]
[1736969892244,0.9075,3418.0,3417.6,3.2078]
[1736969892439,0.9075,3418.0,3417.1,1.433]
[1736969892440,4.1153,3418.0,3417.2,3.2078]
[1736969892841,1.46266,3417.9,3416.8,3.2078]
[1736969893039,0.58522,3417.0,3416.9,0.58523]
[1736969893347,0.58523,3416.9,3416.8,0.58524]
[1736969893552,0.58527,3416.8,3416.7,0.58526]
[1736969893844,0.58524,3416.9,3416.8,0.58524]
[1736969894236,1.9011,3418.1,3416.8,0.58524]
[1736969894237,1.9011,3418.1,3416.8,3.2078]
[1736969894444,0.5852,3417.1,3417.0,0.5852]
[1736969895044,0.58511,3417.7,3417.6,0.5851]
[1736969895245,0.4681,3418.1,3417.6,3.2078]
[1736969895643,0.58509,3417.8,3417.7,0.58509]
[1736969896446,0.58508,3417.8,3417.7,0.58509]
[1736969897347,0.5851,3417.7,3417.6,3.7929]
[1736969897546,0.58508,3417.8,3417.7,0.58508]
[1736969898048,0.4629,3418.3,3417.6,3.2078]
[1736969898252,0.58507,3417.9,3417.8,0.58507]
[1736969898437,0.58507,3417.9,3417.8,3.2078]
[1736969899247,0.58507,3417.9,3417.8,3.79288]
[1736969899650,0.58506,3417.9,3417.8,3.2078]
[1736969900047,0.58506,3417.9,3417.8,3.79288]
[1736969900249,0.58506,3417.9,3417.8,3.2078]
[1736969900851,0.58506,3417.9,3417.8,3.79288]
[1736969901248,0.58505,3418.1,3418.0,0.58503]
[1736969901549,0.58505,3418.1,3418.0,0.58505]
[1736969901746,0.58506,3418.0,3417.9,0.58505]
[1736969901942,0.58506,3417.9,3417.8,3.2078]
[1736969903453,0.4629,3418.3,3417.8,3.2078]
[1736969903847,0.58504,3418.1,3417.8,3.2078]
[1736969904044,0.4629,3418.3,3417.8,3.2078]
[1736969904255,0.58504,3418.1,3418.0,0.58503]
[1736969904955,0.58502,3418.2,3417.9,0.58506]
[1736969905260,0.4629,3418.3,3417.8,3.2078]
[1736969905454,0.58503,3418.1,3418.0,3.79284]
[1736969905748,0.4629,3418.3,3417.5,3.2078]
[1736969905954,3.2078,3418.1,3416.8,3.17241953]
[1736969906148,3.2078,3420.0,3418.0,6.38021953]
[1736969906345,0.914,3419.7,3419.3,3.2078]
[1736969906549,0.914,3419.7,3419.6,0.58477]
[1736969906949,1.49876,3419.7,3419.5,0.58477]
[1736969907149,0.914,3419.7,3419.4,0.58481]
[1736969907347,0.914,3419.7,3419.5,0.58477]
[1736969907655,0.914,3419.7,3419.6,0.58477]
[1736969908046,3.2078,3420.8,3419.3,5.99942679]
[1736969908251,0.58462,3420.5,3420.3,0.58464]
[1736969908454,0.58463,3420.5,3420.3,0.58464]
[1736969908656,0.58465,3420.4,3420.2,3.79246]
[1736969909046,0.58465,3420.3,3420.2,3.79246]
[1736969909245,0.58465,3420.3,3420.2,3.2078]
[1736969909457,0.58464,3420.4,3420.2,3.79246]
[1736969909757,0.58465,3420.3,3420.2,3.79246]
[1736969910261,0.58465,3420.3,3420.2,3.2078]
[1736969911663,4.66941,3420.4,3419.6,0.58476]
[1736969911855,0.58475,3419.8,3419.6,0.58476]
[1736969912055,3.2078,3420.4,3419.5,3.2078]
[1736969912251,0.58477,3419.6,3419.5,3.2078]
[1736969912858,0.58477,3419.6,3418.4,1.432]
[1736969912859,6.46194,3419.6,3418.7,0.58492]
[1736969913049,0.58492,3418.8,3418.6,0.58493]
[1736969913253,1.46202,3419.4,3418.5,2.79162679]
[1736969913460,0.4667,3419.5,3418.5,2.79162679]
[1736969913660,0.58493,3418.7,3418.6,0.58494]
[1736969913861,0.58492,3418.8,3418.5,2.79162679]
[1736969914060,1.46206,3419.3,3418.6,0.58493]
[1736969914268,0.58492,3418.8,3418.6,0.58494]
[1736969914458,0.58493,3418.7,3418.6,0.58494]
[1736969914658,1.46206,3419.3,3418.6,0.58494]
[1736969914958,0.58492,3418.8,3418.5,2.79162679]
[1736969915558,0.58492,3418.8,3418.6,0.58493]
[1736969916078,0.58494,3418.7,3418.6,0.58494]
[1736969916875,0.58491,3418.8,3418.5,2.79162679]
[1736969917071,3.2078,3419.3,3418.5,2.79162679]
[1736969917272,0.58492,3418.8,3418.7,0.58493]
[1736969917472,0.58484,3419.2,3418.6,0.58494]
[1736969917671,0.58491,3418.8,3418.6,0.58493]
[1736969917974,0.9269,3419.5,3418.5,2.79162679]
[1736969918171,0.9269,3419.5,3419.0,3.2078]
[1736969918374,0.58486,3419.1,3419.0,3.2078]
[1736969921081,0.58485,3419.2,3419.0,3.2078]
[1736969921271,0.9269,3419.5,3419.0,3.2078]
[1736969921472,0.58479,3419.5,3419.4,3.2078]
[1736969921673,0.58479,3419.5,3419.4,44.0078]
[1736969922574,0.58477,3419.6,3419.5,0.58478]
[1736969922775,0.58475,3419.8,3419.6,0.58476]
[1736969923079,0.9503,3420.2,3419.4,44.0078]
[1736969923281,0.9503,3420.2,3419.6,0.58476]
[1736969923282,0.58476,3419.7,3419.6,0.58476]
[1736969923475,0.9503,3420.2,3419.4,44.0078]
[1736969923781,0.58474,3419.8,3419.7,0.58474]
[1736969924074,0.58474,3419.8,3419.4,44.0078]
[1736969924075,0.58475,3419.7,3419.0,3.6908]
[1736969924274,0.58483,3419.3,3419.1,0.58486]
[1736969924477,0.58484,3419.2,3419.1,0.58486]
[1736969925176,0.58484,3419.3,3419.1,0.58486]
[1736969925373,0.58484,3419.2,3419.1,0.58486]
[1736969926175,0.58484,3419.2,3419.0,4.27566]
[1736969926381,0.58484,3419.2,3419.0,3.6908]
[1736969926869,0.58484,3419.2,3419.1,0.58486]
[1736969927074,0.9503,3420.2,3419.0,3.6908]
[1736969927384,0.58477,3419.6,3419.5,0.58478]
[1736969928482,2.412,3420.2,3419.4,3.2078]
[1736969928788,0.58478,3419.6,3419.5,0.58478]
[1736969929676,1.46176,3420.0,3419.4,3.2078]
[1736969929880,0.58478,3419.6,3419.5,0.58477]
[1736969930481,0.58479,3419.5,3419.4,3.2078]
[1736969930677,4.1581,3420.2,3419.0,3.6908]
[1736969930678,0.58486,3419.1,3419.0,3.6908]
[1736969931078,0.58486,3419.1,3419.0,3.2078]
[1736969933579,5.13465,3419.4,3418.7,2.79162679]
[1736969933884,5.13465,3419.4,3418.6,3.79274]
[1736969933885,0.58493,3418.7,3418.6,3.79274]
[1736969934085,0.58493,3418.7,3418.6,3.2078]
[1736969934775,0.58493,3418.7,3418.6,3.79274]
[1736969934974,0.58493,3418.7,3418.6,3.2078]
[1736969935181,0.58493,3418.7,3418.6,3.79274]
[1736969935387,0.58493,3418.7,3418.6,3.2078]
[1736969935588,0.58499,3418.3,3418.2,3.2078]
[1736969937688,0.58501,3418.2,3418.1,0.01242]
[1736969942992,0.58506,3417.9,3417.4,5.54575979]
[1736969943197,0.58513,3417.5,3417.4,3.2078]
[1736969943890,0.4495,3417.8,3417.1,0.9302]
[1736969944088,1.46286,3417.5,3417.0,46.34575979]
[1736969944397,0.5852,3417.1,3417.0,5.54575979]
[1736969945998,0.5852,3417.1,3417.0,3.2078]
[1736969947302,3.2078,3417.3,3416.7,0.01097]
[1736969947499,0.58525,3416.8,3416.7,0.01097]
[1736969947894,0.58525,3416.8,3416.7,0.59623]
[1736969948094,1.46289,3417.4,3416.7,0.59623]
[1736969948095,0.58516,3417.3,3417.0,0.58522]
[1736969948393,0.58516,3417.3,3417.2,3.2078]
[1736969948996,0.58516,3417.4,3417.3,0.58516]
[1736969949697,0.4635,3418.1,3417.3,43.59185979]
[1736969949995,0.58506,3417.9,3417.8,3.79288]
[1736969950198,0.58506,3417.9,3417.8,3.2078]
[1736969950701,3.2078,3418.0,3417.1,2.33795979]
[1736969951003,0.58518,3417.2,3417.1,2.33795979]
[1736969952395,1.46278,3417.7,3417.0,3.2078]
[1736969952396,0.4629,3417.9,3417.0,3.2078]
[1736969952599,0.4629,3417.9,3415.5,4.44168548]
[1736969952600,0.58525,3416.8,3416.3,3.2078]
[1736969952796,0.58525,3416.8,3416.7,3.21877]
[1736969953595,0.58525,3416.8,3416.7,0.01097]
[1736969956213,0.58539,3416.0,3415.9,3.6963]
[1736969958201,0.58539,3416.0,3415.3,40.8]
[1736969958202,2.79740329,3416.0,3415.3,3.2078]
[1736969958404,0.58556,3415.0,3414.9,4.95058548]
[1736969958606,1.46369,3415.5,3414.9,4.95058548]
[1736969958802,0.58556,3415.0,3414.9,4.95058548]
[1736969958994,1.46356,3415.8,3414.9,4.95058548]
[1736969959199,0.58551,3415.3,3415.2,3.2078]
[1736969961304,0.58548,3415.5,3415.2,3.2078]
[1736969961506,2.79740329,3416.7,3415.2,3.2078]
[1736969961697,2.79740329,3416.7,3415.1,2.79740329]
[1736969961698,0.58528,3416.6,3416.2,3.2078]
[1736969961902,1.46321,3416.7,3416.2,3.2078]
[1736969962103,0.58534,3416.3,3416.2,3.2078]
[1736969962406,1.8563,3417.3,3416.3,0.58533]
[1736969962407,0.58529,3416.6,3416.3,0.58533]
[1736969962606,0.58529,3416.6,3416.5,3.2078]
[1736969962804,1.46296,3417.2,3416.5,3.2078]
[1736969963007,0.58527,3416.7,3416.5,3.79309]
[1736969963207,0.58528,3416.6,3416.5,3.2078]
[1736969964508,2.79740329,3416.9,3416.1,3.2078]
[1736969964708,0.58544,3415.7,3415.6,3.2078]
[1736969965206,0.58541,3415.9,3415.7,0.58544]
[1736969965513,0.58541,3415.9,3415.7,1.09003]
[1736969966212,0.58542,3415.8,3415.7,0.5046]
[1736969966409,1.46318,3416.7,3415.7,0.5046]
[1736969966609,0.58542,3415.9,3415.7,1.09004]
[1736969966810,0.58542,3415.8,3415.7,0.5046]
[1736969968209,0.58542,3415.8,3415.2,0.4955]
[1736969968210,0.58551,3415.3,3415.2,3.7033]
[1736969969315,0.58556,3415.0,3414.9,0.4985]
[1736969972211,0.58556,3415.0,3414.8,3.79339]
[1736969972212,0.58558,3414.9,3414.8,3.2078]
[1736969972411,0.58557,3415.0,3414.8,3.2078]
[1736969972615,0.58557,3415.0,3414.8,3.79338]
[1736969973112,0.58557,3415.0,3414.9,0.58558]
[1736969973306,0.58555,3415.1,3414.9,0.58557]
[1736969973708,0.58557,3415.0,3414.8,3.79338]
[1736969973904,2.79740329,3415.4,3414.8,3.2078]
[1736969974109,0.58556,3415.0,3414.9,0.58557]
[1736969974313,0.58556,3415.0,3414.8,3.79338]
[1736969974713,0.58556,3415.0,3414.9,0.58558]
[1736969975013,0.58556,3415.0,3414.8,3.79338]
[1736969975203,2.79740329,3415.4,3414.8,3.2078]
[1736969975401,0.58557,3415.0,3414.8,3.79338]
[1736969975915,2.79740329,3415.4,3414.8,3.2078]
[1736969976113,0.58558,3414.9,3414.8,3.79339]
[1736969976318,0.58558,3414.9,3414.8,3.2078]
[1736969976518,0.58558,3414.9,3414.8,3.79339]
[1736969976711,0.58558,3414.9,3414.8,3.2078]
[1736969977217,0.58558,3414.9,3414.8,3.79339]
[1736969977418,0.58558,3414.9,3414.8,3.2078]
[1736969977615,0.58558,3414.9,3414.8,3.79339]
[1736969977814,3.80573955,3415.5,3414.8,3.2078]
[1736969978211,3.80573955,3415.5,3414.8,3.79338]
[1736969978212,2.34204955,3415.5,3414.8,3.79338]
[1736969978516,0.58558,3414.9,3414.8,3.79338]
[1736969978717,1.46373,3415.4,3414.8,3.2078]
[1736969978908,0.58553,3415.2,3415.0,0.58555]
[1736969979115,0.58552,3415.2,3415.1,0.78314505]
[1736969979817,0.58552,3415.3,3415.2,0.58552]
[1736969980015,0.58552,3415.3,3415.1,0.78313505]
[1736969980219,0.58552,3415.3,3415.2,0.4886]
[1736969980717,0.58552,3415.3,3415.2,1.07412]
[1736969980923,0.58545,3415.7,3415.6,0.58545]
[1736969981123,0.58545,3415.7,3415.6,3.2078]
[1736969983221,0.58545,3415.7,3415.6,2.9578]
[1736969985123,2.34204955,3416.1,3415.6,2.9578]
[1736969985326,0.58543,3415.8,3415.6,2.9578]
[1736969985518,0.58542,3415.9,3415.7,0.58544]
[1736969985823,0.58542,3415.8,3415.7,0.58544]
[1736969986117,0.58544,3415.7,3415.6,3.54325]
[1736969987919,0.58544,3415.7,3415.6,2.9578]
[1736969989218,1.46365,3415.6,3415.1,3.40540505]
[1736969989419,0.58552,3415.2,3415.1,3.40540505]
[1736969992022,2.92756955,3415.2,3415.1,3.40540505]
[1736969992420,2.92756955,3415.2,3415.1,0.19760505]
[1736969993420,2.92756955,3415.2,3414.2,3.2078]
[1736969993421,2.34204955,3415.2,3414.2,3.2078]
[1736969993723,1.46382,3415.2,3414.2,3.2078]
[1736969993920,1.98114,3415.4,3414.6,3.2078]
[1736969994225,0.58555,3415.1,3414.9,0.58557]
[1736969994423,3.2078,3415.5,3414.7,0.5178]
[1736969994623,0.58557,3415.0,3414.8,0.58559]
[1736969994919,3.2078,3415.5,3414.7,0.5856]
[1736969994920,0.58559,3414.9,3414.7,0.5856]
[1736969995118,0.58561,3414.7,3414.6,3.2078]
[1736969996221,3.2078,3415.0,3414.2,0.5178]
[1736969996419,0.58568,3414.3,3414.2,0.5178]
[1736970000122,0.58565,3414.5,3414.3,0.58567]
[1736970000323,1.46395,3414.9,3414.3,0.58567]
[1736970000627,0.58568,3414.4,3414.2,1.10349]
[1736970000929,0.58568,3414.4,3414.3,3.2078]
[1736970002017,0.58571,3414.1,3414.0,0.4905]
[1736970002223,0.58571,3414.1,3413.7,3.2078]
[1736970002224,0.58568,3414.4,3413.7,3.2078]
[1736970002419,0.58576,3413.8,3413.7,44.0078]
[1736970002727,0.58576,3413.8,3413.7,3.2078]
[1736970002931,0.58576,3413.8,3413.2,1.313]
[1736970002932,2.34204955,3413.9,3413.3,3.2078]
[1736970003223,0.58583,3413.4,3413.3,44.0078]
[1736970003727,0.58583,3413.4,3413.3,3.2078]
[1736970005532,0.5859,3413.0,3412.9,3.2078]
[1736970006925,0.58595,3412.8,3412.6,0.58596]
[1736970007126,0.58593,3412.9,3412.7,0.58595]
[1736970007728,5.54984955,3413.3,3412.5,4.2208]
[1736970008023,0.58593,3412.9,3412.6,0.58597]
[1736970008229,0.58593,3412.9,3412.7,0.58594]
[1736970008428,7.01448955,3413.3,3412.5,4.2208]
[1736970008429,0.58597,3412.6,3412.5,4.2208]
[1736970008928,0.58597,3412.6,3412.5,3.2078]
[1736970009125,0.58606,3412.1,3412.0,3.2078]
[1736970009321,3.80696955,3412.7,3412.0,3.2078]
[1736970009520,0.58599,3412.6,3412.5,3.2078]
[1736970009722,1.46468,3413.2,3412.5,3.2078]
[1736970009928,1.46472,3413.1,3412.5,3.2078]
[1736970010231,0.5859,3413.0,3412.9,3.2078]
[1736970010740,2.34204955,3413.3,3412.9,3.2078]
[1736970011032,0.5859,3413.0,3412.9,3.2078]
[1736970013029,2.34204955,3413.6,3412.9,3.2078]
[1736970013232,2.34204955,3414.6,3412.9,3.2078]
[1736970013233,0.58569,3414.3,3414.0,0.58572]
[1736970013431,2.34204955,3414.9,3414.2,3.2078]
[1736970013627,0.58568,3414.3,3414.2,3.2078]
[1736970014036,2.92772955,3414.3,3414.2,3.2078]
[1736970014236,0.58576,3413.8,3413.7,1.285]
[1736970014735,0.58576,3413.8,3413.6,3.7204]
[1736970014736,0.58578,3413.7,3413.6,3.7204]
[1736970015229,2.92782955,3413.7,3413.6,3.2078]
[1736970015437,4.67223,3413.8,3413.0,3.2078]
[1736970015627,0.58588,3413.1,3413.0,3.2078]
[1736970018333,1.46451,3413.6,3413.0,3.2078]
[1736970018746,4.26695859,3413.9,3413.2,3.2078]
[1736970019139,3.2078,3414.2,3413.2,6.01034859]
[1736970019333,0.58574,3414.0,3413.7,3.2078]
[1736970019537,0.58574,3414.0,3413.8,1.10126]
[1736970019841,0.58572,3414.1,3413.9,0.58574]
[1736970020230,0.58571,3414.2,3413.9,0.58575]
[1736970020438,0.58571,3414.2,3413.8,0.5155]
[1736970020439,0.58572,3414.1,3413.8,1.10125]
[1736970020641,0.58574,3414.0,3413.8,1.10125]
[1736970020840,1.46412,3414.5,3413.8,1.10125]
[1736970021035,1.46412,3414.5,3413.8,0.5155]
[1736970021236,0.5857,3414.2,3413.9,0.58574]
[1736970021431,0.58563,3414.6,3413.8,0.5155]
[1736970021636,2.80254859,3414.7,3414.0,0.58573]
[1736970022342,2.80254859,3414.7,3413.8,0.5155]
[1736970022537,1.46408,3414.6,3413.8,0.5155]
[1736970022741,1.46408,3414.6,3413.8,1.10125]
[1736970022939,0.58572,3414.1,3413.8,1.10125]
[1736970023246,0.58572,3414.1,3413.9,0.58575]
[1736970023544,2.80254859,3414.3,3413.7,3.2078]
[1736970023746,0.58576,3413.8,3413.7,3.2078]
[1736970023942,0.58587,3413.2,3413.1,3.2078]
[1736970024638,1.46442,3413.8,3413.1,3.2078]
[1736970025038,6.01034859,3413.9,3413.1,3.2078]
[1736970025444,0.58576,3413.8,3413.5,3.2078]
[1736970025736,3.2078,3414.8,3413.5,3.2078]
[1736970025940,0.58561,3414.7,3414.4,0.58565]
[1736970026245,0.58563,3414.7,3414.5,0.58564]
[1736970026446,0.58563,3414.7,3414.1,0.5176]
[1736970026645,0.58563,3414.6,3414.1,0.5176]
[1736970026943,3.2078,3414.8,3414.3,0.58567]
[1736970027144,3.2078,3414.8,3414.1,0.5176]
[1736970027342,3.2078,3414.8,3414.3,0.58567]
[1736970027739,0.58564,3414.6,3414.1,0.5176]
[1736970027940,3.2078,3414.8,3414.1,0.5176]
[1736970028143,0.58566,3414.5,3414.3,0.58567]
[1736970029147,3.2078,3414.8,3414.0,4.9825]
[1736970029347,3.2078,3414.8,3414.1,0.58571]
[1736970029348,0.58569,3414.3,3414.1,0.58571]
[1736970029553,0.58567,3414.4,3414.2,0.5857]
[1736970029848,4.67182,3414.8,3414.0,4.9825]
[1736970029849,0.58568,3414.3,3414.1,0.5857]
[1736970030637,3.2078,3414.8,3414.0,3.6975]
[1736970030944,0.58571,3414.1,3414.0,3.2078]
[1736970033141,0.4802,3414.7,3414.0,3.2078]
[1736970033364,1.46404,3414.7,3414.0,3.2078]
[1736970033554,0.58571,3414.1,3414.0,3.2078]
[1736970034447,0.58578,3413.7,3413.6,0.4869]
[1736970035253,0.58578,3413.7,3413.5,3.7081]
[1736970035254,0.5858,3413.6,3413.5,3.7081]
[1736970035449,0.5858,3413.6,3413.5,3.2078]
[1736970035651,3.2078,3413.9,3413.1,3.2078]
[1736970035847,0.58587,3413.2,3413.1,3.2078]
[1736970037352,0.5045,3413.8,3413.1,3.2078]
[1736970037554,0.58584,3413.4,3413.2,0.58586]
[1736970038054,4.6722,3413.9,3413.1,3.2078]
[1736970038256,0.5858,3413.7,3413.5,3.79361]
[1736970038559,0.5858,3413.6,3413.5,3.2078]
[1736970039062,0.58587,3413.2,3413.1,3.2078]
[1736970039649,3.2078,3413.9,3413.1,3.2078]
[1736970039845,3.2078,3413.9,3413.2,0.58586]
[1736970040046,0.58586,3413.3,3413.1,3.79368]
[1736970040254,0.58584,3413.4,3413.2,0.58586]
[1736970040556,0.58579,3413.7,3413.5,0.5858]
[1736970040757,0.58578,3413.7,3413.6,3.2078]
[1736970043951,0.4754,3414.2,3413.6,3.2078]
[1736970044255,3.2078,3415.4,3414.1,6.01034859]
[1736970044460,0.58548,3415.5,3415.3,3.2078]
[1736970044755,0.58541,3415.9,3415.6,0.58545]
[1736970044956,0.5854,3416.0,3415.7,3.2078]
[1736970045156,0.5854,3416.0,3415.7,3.79324]
[1736970045356,3.2078,3416.5,3415.7,3.2078]
[1736970045557,0.58541,3415.9,3415.7,3.2078]
[1736970045755,2.04862,3416.4,3415.7,3.2078]
[1736970045954,3.2078,3416.5,3415.7,3.2078]
[1736970046151,0.58542,3415.8,3415.7,3.2078]
[1736970046459,1.46335,3416.3,3415.7,3.2078]
[1736970046654,0.58542,3415.8,3415.7,3.2078]
[1736970047157,0.58539,3416.1,3415.7,3.79323]
[1736970047363,0.479,3416.8,3415.7,6.01034859]
[1736970047558,3.2078,3417.3,3416.1,3.2078]
[1736970047760,1.46297,3417.2,3416.2,0.58534]
[1736970047961,0.5853,3416.6,3416.2,0.58534]
[1736970048161,0.5853,3416.6,3416.1,3.2078]
[1736970048162,0.58531,3416.5,3416.1,3.79316]
[1736970048761,0.58533,3416.4,3416.1,3.2078]
[1736970049064,0.58532,3416.4,3416.1,3.2078]
[1736970050260,3.2078,3416.9,3416.1,3.2078]
[1736970050458,0.58534,3416.3,3416.1,3.2078]
[1736970051466,0.58532,3416.4,3416.1,3.2078]
[1736970051866,0.58534,3416.3,3416.1,3.2078]
[1736970052167,0.58533,3416.4,3416.1,3.2078]
[1736970052367,0.58533,3416.4,3416.1,3.79317]
[1736970053167,3.2078,3416.9,3416.1,3.2078]
[1736970053368,0.58528,3416.7,3416.3,0.58532]
[1736970053560,3.2078,3416.9,3416.3,0.5135]
[1736970053756,0.5853,3416.5,3416.3,0.5135]
[1736970054769,3.2078,3416.9,3416.3,0.5135]
[1736970054770,0.58532,3416.4,3416.3,0.5135]
[1736970055266,0.5853,3416.6,3416.3,0.5135]
[1736970055467,0.5853,3416.5,3416.3,0.5135]
[1736970055667,0.58525,3416.8,3416.3,0.5135]
[1736970055969,0.58532,3416.5,3416.3,0.5135]
[1736970056463,3.2078,3416.9,3416.3,0.5135]
[1736970056672,0.58532,3416.4,3416.3,0.5135]
[1736970057370,2.47544,3417.5,3416.3,0.5135]
[1736970057567,2.47544,3417.5,3416.8,3.2078]
[1736970057875,0.5238,3417.5,3416.8,3.2078]
[1736970058067,0.58518,3417.3,3416.9,0.58523]
[1736970058275,0.58518,3417.3,3417.0,0.4941]
[1736970058665,4.67051,3417.8,3417.0,0.4941]
[1736970058967,0.58518,3417.2,3417.0,0.4941]
[1736970059366,4.67051,3417.8,3417.0,0.4941]
[1736970059562,0.5852,3417.1,3417.0,0.4941]
[1736970059977,0.58523,3416.9,3416.8,3.2078]
[1736970061675,3.2078,3417.4,3416.4,3.2078]
[1736970061676,0.5853,3416.5,3416.4,3.2078]
[1736970064170,0.58537,3416.1,3416.0,3.2078]
[1736970066977,0.58544,3415.7,3415.6,3.2078]
[1736970067569,1.46367,3415.6,3415.1,3.2078]
[1736970067774,0.58552,3415.2,3415.1,3.2078]
[1736970074376,1.46371,3415.5,3414.7,0.5083]
[1736970074377,3.2078,3415.3,3414.7,0.5083]
[1736970074577,4.67176,3414.9,3414.1,3.2078]
[1736970074769,0.5857,3414.2,3414.1,3.2078]
[1736970074973,0.5857,3414.2,3414.1,44.0078]
[1736970079775,0.5857,3414.2,3414.1,3.2078]
[1736970079978,2.92834868,3414.2,3414.1,3.2078]
[1736970081184,0.5857,3414.2,3414.1,3.2078]
[1736970084383,0.5118,3414.7,3414.1,3.2078]
[1736970084675,3.2078,3415.3,3414.6,0.58562]
[1736970084676,0.58561,3414.8,3414.6,0.58562]
[1736970084876,0.58561,3414.8,3414.5,3.79343]
[1736970085077,0.58558,3414.9,3414.6,1.08691]
[1736970085280,0.5856,3414.8,3414.6,1.08691]
[1736970085480,0.5856,3414.8,3414.6,0.5013]
[1736970085681,0.5856,3414.8,3414.6,1.08692]
[1736970085876,0.5856,3414.8,3414.6,0.5013]
[1736970086084,7.01422868,3415.3,3414.6,1.08692]
[1736970086282,0.58561,3414.8,3414.6,0.5013]
[1736970086481,0.58561,3414.7,3414.6,0.5013]
[1736970086687,0.5856,3414.8,3414.6,1.08692]
[1736970086988,1.46382,3415.2,3414.6,0.5013]
[1736970087175,3.2078,3415.3,3414.6,0.5013]
[1736970087487,0.58559,3414.9,3414.6,1.08692]
[1736970087787,0.58559,3414.9,3414.7,0.58561]
[1736970087987,0.5856,3414.8,3414.6,1.08692]
[1736970088188,3.2078,3415.3,3414.6,0.5013]
[1736970088389,1.46384,3415.2,3414.6,0.5013]
[1736970088584,0.5856,3414.8,3414.6,0.5013]
[1736970088991,2.34264868,3415.3,3414.6,0.5013]
[1736970089286,5.55044868,3416.2,3415.2,3.2078]
[1736970089487,0.58542,3415.8,3415.7,3.2078]
[1736970094089,3.2078,3416.6,3415.7,3.2078]
[1736970094282,0.58535,3416.3,3415.8,0.58542]
[1736970094491,0.58535,3416.2,3415.9,0.5854]
[1736970094790,0.58536,3416.2,3416.0,0.487]
[1736970094994,0.58535,3416.2,3416.1,3.2078]
[1736970096284,0.58528,3416.6,3416.1,3.2078]
[1736970096592,5.17808,3417.0,3416.2,0.58535]
[1736970096791,0.5853,3416.6,3416.1,3.2078]
[1736970097091,0.5853,3416.6,3416.2,0.58535]
[1736970097585,1.97028,3417.0,3416.1,3.2078]
[1736970097791,2.79870467,3417.1,3416.1,3.2078]
[1736970097991,0.58529,3416.6,3416.3,0.58533]
[1736970098190,0.58529,3416.6,3416.4,0.5068]
[1736970098593,0.58529,3416.6,3416.5,3.2078]
[1736970099288,4.6708,3417.2,3416.5,3.2078]
[1736970099687,0.58528,3416.6,3416.5,3.2078]
[1736970104689,0.58528,3416.7,3416.5,3.2078]
[1736970105093,0.58528,3416.6,3416.5,3.2078]
[1736970105293,1.46312,3416.9,3416.1,4.4438]
[1736970105491,0.58535,3416.2,3416.1,4.4438]
[1736970105689,0.58535,3416.2,3416.1,3.2078]
[1736970105996,4.67078,3417.2,3416.1,6.00650467]
[1736970106294,0.58527,3416.7,3416.6,3.2078]
[1736970107197,1.46296,3417.2,3416.6,3.2078]
[1736970107499,0.58527,3416.7,3416.6,3.2078]
[1736970108189,1.46296,3417.2,3416.6,3.2078]
[1736970108394,0.58527,3416.7,3416.6,3.2078]
[1736970108592,0.58534,3416.3,3416.2,3.2078]
[1736970117300,0.58539,3416.0,3415.8,3.2078]
[1736970117499,0.5854,3415.9,3415.8,3.2078]
[1736970118999,0.58547,3415.5,3415.4,3.7155]
[1736970119300,0.58547,3415.5,3415.4,3.2078]
[1736970121806,0.58544,3415.7,3415.5,0.58547]
[1736970121998,0.58544,3415.7,3415.5,41.38547]
[1736970122199,0.58544,3415.7,3415.6,0.5174]
[1736970122702,0.58543,3415.8,3415.6,0.5174]
[1736970122908,0.58544,3415.7,3415.6,0.5174]
[1736970124897,2.3399987,3416.3,3415.6,0.5174]
[1736970125103,0.58541,3415.9,3415.8,3.2078]
[1736970126110,0.58535,3416.2,3415.8,3.2078]
[1736970126407,0.58537,3416.1,3415.8,3.79321]
[1736970126798,1.46333,3416.4,3415.8,3.2078]
[1736970127001,0.5854,3415.9,3415.8,3.2078]
[1736970128411,0.5854,3416.0,3415.8,3.2078]
[1736970128604,2.3399987,3416.3,3415.8,3.2078]
[1736970128805,0.58538,3416.1,3415.9,0.5854]
[1736970129102,0.58532,3416.4,3415.9,0.58539]
[1736970129302,0.58538,3416.1,3415.9,0.58539]
[1736970129506,1.46328,3416.5,3415.8,3.2078]
[1736970129706,0.58539,3416.0,3415.8,3.79321]
[1736970130121,1.46328,3416.5,3415.8,3.2078]
[1736970130323,0.58538,3416.1,3415.9,0.5854]
[1736970130522,1.4633,3416.4,3415.8,3.2078]
[1736970130718,0.5854,3415.9,3415.8,3.2078]
[1736970132724,2.3399987,3416.0,3415.4,3.2078]
[1736970132920,2.9254687,3415.5,3415.4,3.2078]
[1736970133227,0.58554,3415.1,3415.0,3.2078]
[1736970137320,1.46361,3415.7,3415.0,3.2078]
[1736970137519,0.5855,3415.4,3415.1,0.58553]
[1736970137724,2.3399987,3415.8,3415.0,3.2078]
[1736970137928,0.5855,3415.4,3415.1,0.58554]
[1736970138113,0.5855,3415.4,3415.2,40.8]